bitfinex/quotes_ETHUSD_20251006
["timestamp","ask_amount","ask_price","bid_price","bid_amount"]
[1759769732470,7.38,4676.3,4676.2,7.06268851]
[1759769732645,7.38,4676.3,4676.2,8.14990818]
[1759769732841,8.61,4676.3,4676.2,38.39702211]
[1759769733041,8.61,4676.3,4676.2,37.95122211]
[1759769734237,9.84,4676.3,4676.2,39.01342211]
[1759769734466,9.84,4676.3,4676.2,40.91539675]
[1759769734875,9.84,4676.3,4676.2,40.48679675]
[1759769735373,9.84,4676.3,4676.2,40.66828282]
[1759769735556,11.07,4676.3,4676.2,40.66828282]
[1759769735760,11.07,4676.3,4676.2,40.23968282]
[1759769736172,11.07,4676.3,4676.2,37.18908282]
[1759769736349,11.5036,4676.3,4676.2,35.28710818]
[1759769736553,11.5036,4676.3,4676.2,37.70510818]
[1759769737172,12.7336,4676.3,4676.2,35.28710818]
[1759769737372,12.7336,4676.3,4676.2,37.70510818]
[1759769737575,12.3,4676.3,4676.2,37.70510818]
[1759769737972,12.7336,4676.3,4676.2,37.12357318]
[1759769738176,12.7336,4676.3,4676.2,32.58908518]
[1759769738377,13.9636,4676.3,4676.2,27.42029818]
[1759769738545,13.9636,4676.3,4676.2,29.49280118]
[1759769739375,13.9636,4676.3,4676.2,24.93631267]
[1759769739576,13.9636,4676.3,4676.2,3.62531167]
[1759769739791,13.9636,4676.3,4676.2,6.04331167]
[1759769739956,15.1936,4676.3,4676.2,8.44331167]
[1759769740587,15.1936,4676.3,4676.2,11.88102967]
[1759769740987,15.1936,4676.3,4676.2,9.48102967]
[1759769741190,15.1936,4676.3,4676.2,11.88102967]
[1759769741421,16.4236,4676.3,4676.2,10.87402967]
[1759769741699,18.56042062,4676.3,4676.2,11.25190767]
[1759769742077,18.56042062,4676.3,4676.2,10.610488]
[1759769742599,16.4236,4676.3,4676.2,10.610488]
[1759769742903,17.22,4676.3,4676.2,10.801982]
[1759769743066,17.6536,4676.3,4676.2,12.94047051]
[1759769743461,17.22,4676.3,4676.2,12.94047051]
[1759769743864,17.22,4676.3,4676.2,4.9262]
[1759769744199,18.8836,4676.3,4676.2,14.778148]
[1759769744360,18.8836,4676.3,4676.2,5.619529]
[1759769744564,18.8836,4676.3,4676.2,7.947782]
[1759769744870,21.02042062,4676.3,4676.2,7.947782]
[1759769745621,22.25042062,4676.3,4676.2,7.947782]
[1759769746822,23.48042062,4676.3,4676.2,7.947782]
[1759769747008,23.48042062,4676.3,4676.2,4.819]
[1759769747192,21.3436,4676.3,4676.2,13.607271]
[1759769747998,21.3436,4676.3,4676.2,4.819]
[1759769748202,22.14,4676.3,4676.2,15.80457251]
[1759769748731,22.5736,4676.3,4676.2,15.80457251]
[1759769749021,22.14,4676.3,4676.2,15.91177251]
[1759769749189,22.14,4676.3,4676.2,20.85030551]
[1759769749387,22.5736,4676.3,4676.2,11.966956]
[1759769749588,24.33705924,4676.3,4676.2,7.728044]
[1759769749814,23.90345924,4676.3,4676.2,7.728044]
[1759769750212,23.90345924,4676.3,4676.2,14.78289951]
[1759769750718,24.33705924,4676.3,4676.2,14.78289951]
[1759769750889,25.56705924,4676.3,4676.2,14.78289951]
[1759769751094,25.56705924,4676.3,4676.2,16.74539951]
[1759769751292,25.56705924,4676.3,4676.2,14.94539951]
[1759769751709,25.13345924,4676.3,4676.2,14.94539951]
[1759769751917,24.6,4676.3,4676.2,14.94539951]
[1759769752111,24.6,4676.3,4676.2,6.95648851]
[1759769752314,25.83,4676.3,4676.2,19.80927051]
[1759769752688,25.83,4676.3,4676.2,17.670782]
[1759769752893,27.96682062,4676.3,4676.2,13.144111]
[1759769753094,25.83,4676.3,4676.2,4.818]
[1759769753309,25.83,4676.3,4676.2,18.82329951]
[1759769753695,27.06,4676.3,4676.2,18.82329951]
[1759769754326,27.06,4676.3,4676.2,15.60929351]
[1759769754525,27.4936,4676.3,4676.2,15.60929351]
[1759769754726,27.4936,4676.3,4676.2,16.25080645]
[1759769755227,28.7236,4676.3,4676.2,11.51414294]
[1759769755601,28.7236,4676.3,4676.2,13.65263145]
[1759769755800,28.7236,4676.3,4676.2,13.16063145]
[1759769756715,29.9536,4676.3,4676.2,13.16063145]
[1759769757234,29.9536,4676.3,4676.2,14.65575345]
[1759769757593,29.9536,4676.3,4676.2,13.82175345]
[1759769757799,29.9536,4676.3,4676.2,13.16063145]
[1759769758133,29.9536,4676.3,4676.2,11.20296551]
[1759769758309,29.9536,4676.3,4676.2,10.252477]
[1759769758310,31.1836,4676.3,4676.2,10.252477]
[1759769758516,31.1836,4676.3,4676.2,13.03247845]
[1759769759034,31.1836,4676.3,4676.2,10.89398994]
[1759769759234,31.1836,4676.3,4676.2,11.03526494]
[1759769759536,31.1836,4676.3,4676.2,13.17375345]
[1759769759737,32.4136,4676.3,4676.2,13.17375345]
[1759769760237,31.98,4676.3,4676.2,15.98175345]
[1759769760613,32.4136,4676.3,4676.2,11.20926494]
[1759769760820,32.4136,4676.3,4676.2,8.81273594]
[1759769761442,33.6436,4676.3,4676.2,12.98262494]
[1759769761738,33.6436,4676.3,4676.2,12.67347494]
[1759769762342,33.6436,4676.3,4676.2,17.30296345]
[1759769762534,33.21,4676.3,4676.2,17.30296345]
[1759769762842,34.44,4676.3,4676.2,17.30296345]
[1759769763043,34.44,4676.3,4676.2,14.00403945]
[1759769763337,34.44,4676.3,4676.2,15.96691245]
[1759769763522,34.44,4676.3,4676.2,13.16439845]
[1759769763729,34.873,4676.3,4676.2,12.52288551]
[1759769764243,36.103,4676.3,4676.2,12.52288551]
[1759769764539,36.103,4676.3,4676.2,13.40141451]
[1759769764902,36.103,4676.3,4676.2,10.71790851]
[1759769765537,37.333,4676.3,4676.2,10.85743551]
[1759769766320,36.9,4676.3,4676.2,10.85743551]
[1759769766643,37.333,4676.3,4676.2,11.20446651]
[1759769766811,38.563,4676.3,4676.2,11.20446651]
[1759769767443,38.563,4676.3,4676.2,8.711978]
[1759769767645,38.13,4676.3,4676.2,10.85046651]
[1759769768355,39.36,4676.3,4676.2,10.85046651]
[1759769768562,39.36,4676.3,4676.2,13.028513]
[1759769768722,39.36,4676.3,4676.2,15.16700151]
[1759769768927,39.36,4676.3,4676.2,13.86987751]
[1759769769229,39.36,4676.3,4676.2,13.03587751]
[1759769769435,39.793,4676.3,4676.2,11.23587751]
[1759769769959,41.023,4676.3,4676.2,11.23587751]
[1759769770433,40.59,4676.3,4676.2,13.31482451]
[1759769771526,40.59,4676.3,4676.2,14.56931651]
[1759769771723,41.82,4676.3,4676.2,14.56931651]
[1759769772223,41.82,4676.3,4676.2,13.41223051]
[1759769772653,41.82,4676.3,4676.2,14.01972851]
[1759769772919,42.253,4676.3,4676.2,4.818]
[1759769773151,43.483,4676.3,4676.2,10.62795551]
[1759769773853,43.483,4676.3,4676.2,6.071467]
[1759769774158,43.483,4676.3,4676.2,8.454645]
[1759769774361,43.483,4676.3,4676.2,10.59313351]
[1759769774528,44.713,4676.3,4676.2,11.28266151]
[1759769774860,44.713,4676.3,4676.2,6.20979]
[1759769775156,44.713,4676.3,4676.2,10.76427851]
[1759769775672,44.713,4676.3,4676.2,11.63301051]
[1759769775967,45.943,4676.3,4676.2,11.63301051]
[1759769776371,45.51,4676.3,4676.2,11.63301051]
[1759769776569,45.51,4676.3,4676.2,22.07678951]
[1759769777270,46.74,4676.3,4676.2,22.07678951]
[1759769777457,46.74,4676.3,4676.2,22.54628951]
[1759769777656,46.74,4676.3,4676.2,30.80916251]
[1759769778173,46.74,4676.3,4676.2,30.06505751]
[1759769778668,47.97,4676.3,4676.2,37.42398851]
[1759769778870,47.97,4676.3,4676.2,38.37575715]
[1759769779037,47.97,4676.3,4676.2,36.47378251]
[1759769779237,47.97,4676.3,4676.2,38.38146047]
[1759769779570,47.97,4676.3,4676.2,36.47378251]
[1759769779783,47.97,4676.3,4676.2,37.42398851]
[1759769779990,49.2,4676.3,4676.2,38.16478851]
[1759769781335,49.2,4676.3,4676.2,38.41190244]
[1759769781538,50.43,4676.3,4676.2,38.41190244]
[1759769782676,43.93862941,4676.3,4676.2,38.41190244]
[1759769782895,0.002,4676.5,4676.4,5.17199705]
[1759769783206,0.002,4676.5,4676.4,39.97611098]
[1759769783501,0.002,4676.5,4676.4,40.44561098]
[1759769784287,1.232,4676.5,4676.4,40.44561098]
[1759769784989,1.232,4676.5,4676.4,38.66491136]
[1759769785156,1.232,4676.5,4676.4,43.30891136]
[1759769785557,2.462,4676.5,4676.4,43.30891136]
[1759769786593,2.462,4676.5,4676.4,38.66491136]
[1759769786796,2.462,4676.5,4676.4,24.14959543]
[1759769786996,3.692,4676.5,4676.4,24.19797243]
[1759769787659,3.692,4676.5,4676.4,36.06544843]
[1759769787909,4.125,4676.5,4676.4,15.73365643]
[1759769788077,4.125,4676.5,4676.4,10.78920605]
[1759769788278,4.125,4676.5,4676.4,9.77096405]
[1759769788483,5.355,4676.5,4676.4,9.77096405]
[1759769788679,5.355,4676.5,4676.4,16.03758405]
[1759769788881,5.355,4676.5,4676.2,0.1072]
[1759769789071,7.34615566,4676.5,4676.3,4.535323]
[1759769789274,7.34615566,4676.5,4676.1,2.13951028]
[1759769789275,6.91315566,4676.5,4676.4,8.893689]
[1759769789574,6.91315566,4676.5,4676.4,11.085394]
[1759769789780,8.57615566,4676.5,4676.4,13.270354]
[1759769790182,8.68335566,4676.5,4676.4,15.40875105]
[1759769790398,6.6922,4676.5,4676.4,15.40875105]
[1759769790597,6.6922,4676.5,4676.4,13.270354]
[1759769790789,6.6922,4676.5,4676.4,11.070354]
[1759769791441,7.9222,4676.5,4676.4,11.070354]
[1759769791593,7.9222,4676.5,4676.4,13.20875105]
[1759769791788,7.9222,4676.5,4676.4,14.41388105]
[1759769792698,9.1522,4676.5,4676.4,14.41388105]
[1759769793004,9.1522,4676.5,4676.4,18.62262505]
[1759769793713,9.1522,4676.5,4676.4,17.17720305]
[1759769793910,8.612,4676.5,4676.4,17.17720305]
[1759769794113,9.842,4676.5,4676.4,16.87016105]
[1759769794304,9.842,4676.5,4676.4,15.38397405]
[1759769794505,10.2831,4676.5,4676.4,15.38397405]
[1759769794701,10.2831,4676.5,4676.4,7.01101]
[1759769794904,12.41992062,4676.5,4676.1,0.001]
[1759769795103,12.41992062,4676.5,4676.2,2.421]
[1759769795311,0.1072,4676.3,4676.2,2.421]
[1759769795499,0.5483,4676.3,4676.2,2.421]
[1759769795830,2.68512062,4676.3,4676.1,0.001]
[1759769796142,2.68512062,4676.3,4676.2,2.421]
[1759769797052,2.68512062,4676.3,4676.1,0.001]
[1759769797053,3.91512062,4676.3,4676.1,0.001]
[1759769797254,6.05360478,4676.3,4676.2,2.421]
[1759769797593,3.91512062,4676.3,4676.2,2.421]
[1759769797871,6.0535634,4676.3,4676.2,2.421]
[1759769798227,7.2835634,4676.3,4676.2,2.421]
[1759769799625,6.37512062,4676.3,4676.2,2.421]
[1759769799826,4.2383,4676.3,4676.2,2.421]
[1759769800771,3.69,4676.3,4676.2,2.421]
[1759769801083,4.92,4676.3,4676.2,26.14657951]
[1759769801232,4.92,4676.3,4676.2,23.87742751]
[1759769801632,4.92,4676.3,4676.2,24.32282751]
[1759769802033,4.92,4676.3,4676.2,26.54567651]
[1759769802560,6.15,4676.3,4676.2,23.26048551]
[1759769802774,6.15,4676.3,4676.2,21.85623251]
[1759769803174,6.15,4676.3,4676.2,23.44486151]
[1759769803470,6.15,4676.3,4676.2,21.03908351]
[1759769804079,7.38,4676.3,4676.2,19.74641551]
[1759769805161,7.38,4676.3,4676.2,22.61119951]
[1759769805379,8.61,4676.3,4676.2,22.61119951]
[1759769806105,8.61,4676.3,4676.2,22.32400051]
[1759769806906,9.84,4676.3,4676.2,10.08262851]
[1759769807063,9.84,4676.3,4676.2,11.30252351]
[1759769807389,10.2679,4676.3,4676.2,11.30252351]
[1759769807763,10.2679,4676.3,4676.2,2.4]
[1759769807970,12.40472062,4676.3,4676.2,2.422]
[1759769808275,13.63472062,4676.3,4676.1,0.001]
[1759769808593,13.63472062,4676.3,4676.2,2.422]
[1759769809487,14.86472062,4676.3,4676.2,2.422]
[1759769810786,16.20192062,4676.3,4676.2,2.422]
[1759769812281,17.43192062,4676.3,4676.2,2.422]
[1759769813695,18.66192062,4676.3,4676.2,2.422]
[1759769814812,18.66192062,4676.3,4676.1,0.001]
[1759769815035,0.1072,4676.2,4676.1,0.001]
[1759769815313,0.1072,4676.2,4676.1,8.119985]
[1759769815533,0.1072,4676.2,4676.1,10.25851924]
[1759769815682,0.1072,4676.2,4676.1,7.40774]
[1759769815880,0.1072,4676.2,4676.1,8.108864]
[1759769816076,0.5351,4676.2,4676.1,8.108864]
[1759769816316,0.1072,4676.2,4676.1,8.108864]
[1759769816518,1.3372,4676.2,4676.1,8.108864]
[1759769818021,2.9951,4676.2,4676.1,4.822]
[1759769818185,2.5672,4676.2,4676.1,4.822]
[1759769818515,2.5672,4676.2,4676.1,9.710069]
[1759769819518,3.7972,4676.2,4676.1,9.710069]
[1759769819716,3.7972,4676.2,4676.1,8.615722]
[1759769820300,3.7972,4676.2,4676.1,10.75425624]
[1759769820630,4.56432772,4676.2,4676.1,2.401]
[1759769820817,10.27090359,4676.2,4676.1,2.423]
[1759769821129,10.27090359,4676.2,4676.1,0.001]
[1759769821312,10.27090359,4676.2,4676.1,2.423]
[1759769822227,11.50090359,4676.2,4676.1,2.423]
[1759769822825,7.02432772,4676.2,4676.1,2.423]
[1759769823627,8.25432772,4676.2,4676.1,2.423]
[1759769823831,14.8693921,4676.2,4676.1,0.001]
[1759769823998,14.8693921,4676.2,4676.1,2.422]
[1759769825733,16.0993921,4676.2,4676.1,2.422]
[1759769825919,13.96090359,4676.2,4676.1,2.422]
[1759769826231,16.0993921,4676.2,4676.1,2.422]
[1759769826935,17.3293921,4676.2,4676.1,2.422]
[1759769828252,15.19090359,4676.2,4676.1,2.422]
[1759769828460,18.5593921,4676.2,4676.1,2.422]
[1759769829936,19.7893921,4676.2,4676.1,2.422]
[1759769831160,15.31281623,4676.2,4676.1,2.422]
[1759769831360,16.54281623,4676.2,4676.1,2.422]
[1759769832762,17.77281623,4676.2,4676.1,2.422]
[1759769834259,19.00281623,4676.2,4676.1,2.422]
[1759769834862,16.86432772,4676.2,4676.1,2.422]
[1759769835036,16.86432772,4676.2,4676.1,0.001]
[1759769835236,19.00281623,4676.2,4676.1,2.421]
[1759769835655,20.23281623,4676.2,4676.1,2.421]
[1759769835854,18.09432772,4676.2,4676.1,2.421]
[1759769836065,17.66642772,4676.2,4676.1,2.421]
[1759769836761,17.3272,4676.2,4676.1,2.8558]
[1759769836931,17.3272,4676.2,4676.1,2.421]
[1759769836932,18.5572,4676.2,4676.1,2.421]
[1759769837137,18.9954,4676.2,4676.1,0.001]
[1759769837432,18.9954,4676.2,4676.1,2.421]
[1759769837639,18.5572,4676.2,4676.1,2.421]
[1759769838041,20.34694041,4676.2,4676.1,2.421]
[1759769838455,21.57694041,4676.2,4676.1,2.421]
[1759769838852,19.7872,4676.2,4676.1,2.421]
[1759769839682,19.7872,4676.2,4676.1,4.55953424]
[1759769839880,19.7872,4676.2,4676.1,2.8558]
[1759769839881,21.0172,4676.2,4676.1,2.8558]
[1759769840037,21.0172,4676.2,4676.1,2.421]
[1759769841438,22.2472,4676.2,4676.1,2.421]
[1759769842866,23.4772,4676.2,4676.1,2.421]
[1759769844081,24.7072,4676.2,4676.1,2.421]
[1759769844958,24.7072,4676.2,4676.1,0.001]
[1759769845158,27.17502062,4676.2,4676.1,2.42]
[1759769845564,28.40502062,4676.2,4676.1,2.42]
[1759769845760,28.40502062,4676.2,4676.1,0.001]
[1759769845961,30.54350913,4676.2,4676.1,0.001]
[1759769846166,28.40502062,4676.2,4676.1,0.001]
[1759769846884,29.63502062,4676.2,4676.1,0.001]
[1759769848141,29.19682062,4676.2,4676.1,0.001]
[1759769848373,30.42682062,4676.2,4676.1,0.001]
[1759769849767,31.65682062,4676.2,4676.1,0.001]
[1759769850078,29.52,4676.2,4676.1,0.001]
[1759769851287,30.75,4676.2,4676.1,0.001]
[1759769852217,30.75,4676.2,4676.1,2.419]
[1759769852603,31.98,4676.2,4676.1,2.419]
[1759769854119,33.21,4676.2,4676.1,2.419]
[1759769854819,35.79132062,4676.2,4676.1,2.419]
[1759769854992,35.89852062,4676.2,4676.1,2.419]
[1759769855191,37.12852062,4676.2,4676.1,0.001]
[1759769855402,39.26700913,4676.2,4676.1,2.419]
[1759769855724,36.68402062,4676.2,4676.1,2.419]
[1759769855931,37.13282062,4676.2,4676.1,2.419]
[1759769856712,38.36282062,4676.2,4676.1,2.419]
[1759769858037,41.73130913,4676.2,4676.1,0.001]
[1759769858317,42.36490913,4676.2,4676.1,0.001]
[1759769859513,43.59490913,4676.2,4676.1,0.001]
[1759769860133,43.79498968,4676.2,4676.1,0.001]
[1759769860689,43.59490913,4676.2,4676.1,0.001]
[1759769860888,44.82490913,4676.2,4676.1,0.001]
[1759769862293,46.05490913,4676.2,4676.1,0.001]
[1759769864492,47.28490913,4676.2,4676.1,0.001]
[1759769865876,48.51490913,4676.2,4676.1,0.001]
[1759769867260,49.74490913,4676.2,4676.1,0.001]
[1759769867581,49.29610913,4676.2,4676.1,0.001]
[1759769867948,49.74490913,4676.2,4676.1,0.001]
[1759769868577,50.97490913,4676.2,4676.1,0.001]
[1759769868996,50.52610913,4676.2,4676.1,0.001]
[1759769870100,52.20490913,4676.2,4676.1,0.001]
[1759769870593,52.09770913,4676.2,4676.1,0.001]
[1759769870897,52.27656573,4676.2,4676.1,0.001]
[1759769871415,53.50656573,4676.2,4676.1,0.001]
[1759769872590,54.28776573,4676.2,4676.1,0.001]
[1759769872801,54.73656573,4676.2,4676.1,0.001]
[1759769873716,54.53677122,4676.2,4676.1,0.001]
[1759769874220,55.31797122,4676.2,4676.1,0.001]
[1759769874918,55.76677122,4676.2,4676.1,0.001]
[1759769876193,56.99677122,4676.2,4676.1,0.001]
[1759769876511,56.54797122,4676.2,4676.1,0.001]
[1759769877509,57.77797122,4676.2,4676.1,0.001]
[1759769877676,57.14437122,4676.2,4676.1,0.001]
[1759769878000,55.0075506,4676.2,4676.1,0.001]
[1759769878216,55.0075506,4676.2,4676.1,0.501]
[1759769879416,52.86906209,4676.2,4676.1,0.9728]
[1759769879583,54.09906209,4676.2,4676.1,0.9728]
[1759769879984,54.09906209,4676.2,4676.1,3.3918]
[1759769880704,54.20626209,4676.2,4676.1,3.3918]
[1759769881094,55.43626209,4676.2,4676.1,3.3918]
[1759769881795,55.43626209,4676.2,4676.1,2.92]
[1759769882417,56.66626209,4676.2,4676.1,2.92]
[1759769883831,57.89626209,4676.2,4676.1,2.92]
[1759769884428,57.89826209,4676.2,4676.1,2.92]
[1759769885803,59.12826209,4676.2,4676.1,2.92]
[1759769887232,60.35826209,4676.2,4676.1,2.92]
[1759769887730,60.35826209,4676.2,4676.1,3.351]
[1759769888503,61.58826209,4676.2,4676.1,3.351]
[1759769889233,61.58826209,4676.2,4676.1,5.48953424]
[1759769889407,61.58826209,4676.2,4676.1,19.16100324]
[1759769889812,62.81826209,4676.2,4676.1,17.61329324]
[1759769890129,62.81826209,4676.2,4676.1,20.01329324]
[1759769890504,62.81826209,4676.2,4676.1,21.79251824]
[1759769891429,64.04826209,4676.2,4676.1,21.79251824]
[1759769891600,64.04826209,4676.2,4676.1,25.74809924]
[1759769892019,64.04826209,4676.2,4676.1,25.32035324]
[1759769892637,64.04826209,4676.2,4676.1,21.92729224]
[1759769892830,65.27826209,4676.2,4676.1,21.92729224]
[1759769893648,65.27826209,4676.2,4676.1,21.85329224]
[1759769894414,66.50826209,4676.2,4676.1,21.85329224]
[1759769894843,66.50826209,4676.2,4676.1,20.58929224]
[1759769895651,66.50826209,4676.2,4676.1,22.43317824]
[1759769895859,67.73826209,4676.2,4676.1,22.43317824]
[1759769896745,67.73826209,4676.2,4676.1,23.09680024]
[1759769897344,68.96826209,4676.2,4676.1,22.84180024]
[1759769897734,68.96826209,4676.2,4676.1,22.28770124]
[1759769897931,68.96826209,4676.2,4676.1,8.70547]
[1759769898137,68.96826209,4676.2,4676.1,5.32]
[1759769898347,68.96826209,4676.2,4676.1,7.684301]
[1759769898543,70.19826209,4676.2,4676.1,9.82283524]
[1759769898749,70.19826209,4676.2,4676.1,9.98444024]
[1759769899668,70.19826209,4676.2,4676.1,5.32]
[1759769899876,70.19826209,4676.2,4676.1,7.845906]
[1759769900042,71.42826209,4676.2,4676.1,7.845906]
[1759769900877,71.42826209,4676.2,4676.1,7.867961]
[1759769901543,72.65826209,4676.2,4676.1,7.867961]
[1759769901744,72.65826209,4676.2,4676.1,10.43005524]
[1759769901947,72.65826209,4676.2,4676.1,7.861521]
[1759769902475,72.65826209,4676.2,4676.1,5.442521]
[1759769902658,73.08626209,4676.2,4676.1,7.860521]
[1759769902973,73.08626209,4676.2,4676.1,5.319]
[1759769902974,73.88826209,4676.2,4676.1,5.319]
[1759769903198,73.88826209,4676.2,4676.1,15.21925524]
[1759769903571,73.88826209,4676.2,4676.1,12.53000524]
[1759769903900,73.88826209,4676.2,4676.1,8.974434]
[1759769904100,75.11826209,4676.2,4676.1,8.974434]
[1759769904307,75.11826209,4676.2,4676.1,8.140434]
[1759769904768,75.11826209,4676.2,4676.1,11.48924324]
[1759769905695,76.34826209,4676.2,4676.1,11.48924324]
[1759769906938,77.57826209,4676.2,4676.1,11.48924324]
[1759769908304,78.80826209,4676.2,4676.1,11.48924324]
[1759769910034,80.03826209,4676.2,4676.1,36.62833924]
[1759769910236,79.93106209,4676.2,4676.1,36.40264024]
[1759769910393,79.93106209,4676.2,4676.1,37.04412849]
[1759769910708,79.93106209,4676.2,4676.1,34.15239249]
[1759769911109,79.93106209,4676.2,4676.1,38.53002249]
[1759769911717,81.16106209,4676.2,4676.1,38.53002249]
[1759769913029,82.39106209,4676.2,4676.1,27.23382649]
[1759769913231,82.39106209,4676.2,4676.1,23.30712649]
[1759769913824,82.39106209,4676.2,4676.1,23.30612649]
[1759769914226,82.39106209,4676.2,4676.1,34.68307349]
[1759769914529,83.62106209,4676.2,4676.1,34.15230549]
[1759769914700,83.62106209,4676.2,4676.1,31.23974249]
[1759769915113,83.62106209,4676.2,4676.1,35.49033249]
[1759769915335,83.62106209,4676.2,4676.1,34.01671549]
[1759769915835,84.85106209,4676.2,4676.1,34.01671549]
[1759769917228,86.08106209,4676.2,4676.1,33.90432349]
[1759769917417,86.08106209,4676.2,4676.1,25.56345249]
[1759769917612,86.08106209,4676.2,4676.1,25.13245249]
[1759769917940,86.08106209,4676.2,4676.1,25.58505249]
[1759769918166,86.08106209,4676.2,4676.1,38.32806949]
[1759769918503,87.31106209,4676.2,4676.1,38.32806949]
[1759769919210,87.31106209,4676.2,4676.1,38.55062249]
[1759769920052,88.54106209,4676.2,4676.1,38.55062249]
[1759769920363,88.54106209,4676.2,4676.1,38.65782249]
[1759769921341,89.77106209,4676.2,4676.1,38.65782249]
[1759769922445,89.77106209,4676.2,4676.1,36.24082249]
[1759769922646,91.00106209,4676.2,4676.1,38.65682249]
[1759769923361,91.00106209,4676.2,4676.1,38.20422249]
[1759769924073,92.23106209,4676.2,4676.1,38.20422249]
[1759769925464,93.46106209,4676.2,4676.1,38.20422249]
[1759769925866,93.46106209,4676.2,4676.1,25.74994249]
[1759769926244,93.46106209,4676.2,4676.1,8.20422249]
[1759769926449,93.46106209,4676.2,4676.1,25.89762749]
[1759769926964,94.69106209,4676.2,4676.1,25.65817349]
[1759769927276,94.69106209,4676.2,4676.1,25.12966549]
[1759769927563,94.69106209,4676.2,4676.1,25.58602249]
[1759769927762,94.69106209,4676.2,4676.1,22.66990149]
[1759769927969,94.69106209,4676.2,4676.1,23.73833349]
[1759769928371,95.92106209,4676.2,4676.1,25.62964649]
[1759769928572,95.92106209,4676.2,4676.1,24.54299949]
[1759769929346,95.92106209,4676.2,4676.1,26.05215549]
[1759769929743,97.15106209,4676.2,4676.1,26.05215549]
[1759769929971,97.15106209,4676.2,4676.1,24.32855149]
[1759769930474,97.15106209,4676.2,4676.1,27.20647549]
[1759769931069,98.38106209,4676.2,4676.1,25.78084149]
[1759769931274,98.38106209,4676.2,4676.1,20.90071749]
[1759769931454,98.38106209,4676.2,4676.1,26.17785749]
[1759769931881,98.38106209,4676.2,4676.1,22.63843049]
[1759769932079,98.38106209,4676.2,4676.1,25.05443049]
[1759769932480,99.61106209,4676.2,4676.1,26.04872949]
[1759769933062,99.61106209,4676.2,4676.1,17.12385049]
[1759769933063,100.04776209,4676.2,4676.1,17.12385049]
[1759769933375,99.61106209,4676.2,4676.1,8.50118849]
[1759769933569,99.61106209,4676.2,4676.1,16.24975949]
[1759769933570,100.04776209,4676.2,4676.1,16.24975949]
[1759769933783,100.84106209,4676.2,4676.1,16.24975949]
[1759769933985,101.27776209,4676.2,4676.1,16.24975949]
[1759769934685,101.27776209,4676.2,4676.1,19.38461749]
[1759769935088,102.50776209,4676.2,4676.1,19.38461749]
[1759769935583,102.50776209,4676.2,4676.1,18.47818849]
[1759769935791,102.07106209,4676.2,4676.1,18.47818849]
[1759769936478,103.30106209,4676.2,4676.1,8.09702249]
[1759769936651,103.30106209,4676.2,4676.1,22.31000449]
[1759769937590,103.30106209,4676.2,4676.1,38.09702249]
[1759769937767,104.53106209,4676.2,4676.1,37.74394049]
[1759769938588,104.53106209,4676.2,4676.1,38.09702249]
[1759769938950,104.53106209,4676.2,4676.1,35.65463949]
[1759769939152,104.53106209,4676.2,4676.1,33.94789349]
[1759769939153,105.76106209,4676.2,4676.1,33.94789349]
[1759769939549,105.76106209,4676.2,4676.1,34.96345649]
[1759769939753,105.76106209,4676.2,4676.1,34.28629949]
[1759769939952,102.87753707,4676.2,4676.1,36.18882019]
[1759769940365,102.87753707,4676.2,4676.1,34.28629949]
[1759769940566,104.10753707,4676.2,4676.1,8.20422249]
[1759769940765,104.10753707,4676.2,4676.1,40.56571912]
[1759769942089,105.33753707,4676.2,4676.1,38.65682249]
[1759769943462,106.56753707,4676.2,4676.1,40.5651789]
[1759769944364,106.56753707,4676.2,4676.1,38.65682249]
[1759769944869,107.79753707,4676.2,4676.1,39.29532249]
[1759769945076,60.58114757,4676.7,4676.2,3.0336]
[1759769945275,7.29237287,4676.7,4676.6,3.0336]
[1759769945480,6.65162106,4676.7,4676.6,40.5390599]
[1759769945862,1.67334523,4676.7,4676.6,40.79963123]
[1759769946065,1.67334523,4676.7,4676.6,45.18617693]
[1759769946275,1.67334523,4676.7,4676.6,37.8716056]
[1759769946477,1.67334523,4676.7,4676.6,45.81498223]
[1759769947574,1.67334523,4676.7,4676.6,43.15084704]
[1759769948160,1.67334523,4676.7,4676.6,43.14984704]
[1759769948775,1.67334523,4676.7,4676.6,13.14984704]
[1759769948981,2.90334523,4676.7,4676.6,43.14984704]
[1759769949292,2.90334523,4676.7,4676.6,43.64841527]
[1759769949482,2.26287932,4676.7,4676.6,43.64841527]
[1759769949866,2.26287932,4676.7,4676.6,43.19091527]
[1759769950067,2.26287932,4676.7,4676.6,38.30246097]
[1759769950291,2.26287932,4676.7,4676.6,42.93946097]
[1759769950292,3.49287932,4676.7,4676.6,42.93946097]
[1759769950490,3.49287932,4676.7,4676.6,43.39696097]
[1759769951611,3.49287932,4676.7,4676.6,43.64841527]
[1759769951796,4.72287932,4676.7,4676.6,43.64841527]
[1759769953215,5.95287932,4676.7,4676.6,43.64841527]
[1759769954203,5.95287932,4676.7,4676.6,38.55391527]
[1759769954409,7.18287932,4676.7,4676.6,43.19091527]
[1759769955002,7.18287932,4676.7,4676.6,43.64841527]
[1759769955908,8.41287932,4676.7,4676.6,43.64841527]
[1759769956697,8.41287932,4676.7,4676.6,43.19091527]
[1759769957204,8.41287932,4676.7,4676.6,38.55391527]
[1759769957405,9.64287932,4676.7,4676.6,38.30246097]
[1759769957614,9.64287932,4676.7,4676.6,42.93946097]
[1759769958905,10.87287932,4676.7,4676.6,43.19091527]
[1759769959075,10.87287932,4676.7,4676.6,43.64841527]
[1759769959492,4.49416753,4676.7,4676.6,43.54121527]
[1759769960013,4.49416753,4676.7,4676.6,43.08371527]
[1759769960229,5.72416753,4676.7,4676.6,43.08371527]
[1759769960529,5.72416753,4676.7,4676.6,42.83126097]
[1759769961527,6.95416753,4676.7,4676.6,42.83126097]
[1759769962917,8.18416753,4676.7,4676.6,8.19526097]
[1759769963123,8.61756753,4676.7,4676.6,22.96443944]
[1759769963322,8.61756753,4676.7,4676.6,34.58573057]
[1759769963525,8.61756753,4676.7,4676.6,32.68864804]